Cogmind - Beta 15 --- EXPLORER MODE // 2025.10.20 @ 14:44:38 Player: Mpants Result: Self-destructed Performance ------------- Evolutions (5) 2500 Regions Visited (6) 1200 Robots Destroyed (18) 90 Value Destroyed (576) 576 Prototype IDs (0) 0 Alien Tech Used (0) 0 Bonus (560) 560 TOTAL SCORE: 4926 Bonus ------- Follower Combat Kills 60 Entered DSFs 500 Cogmind --------- Core Integrity 926/1000 Matter 239/300 Energy 100/100 System Corruption 2% Temperature Cool (0) Movement Walking (260) Ox2 Location -5/DSF Parts ------- > --- POWER (2) -------- (None) > --- PROPULSION (5) --- Aluminum Leg Aluminum Leg Aluminum Leg > --- UTILITY (8) ------ Scrap Suit Improved Heat Sink Medium Storage Unit Targeting Computer Authchip [R/Combat] > --- WEAPON (3) ------- Improved EM Pulse Cannon Coil Gun > --- INVENTORY (10) --- Improved VSS Leg Improved VSS Leg Thunder Leg Relay Coupler [NC] (43) Relay Coupler [Demolisher] (29) Relay Coupler [Demolisher] (25) Heavy Shock Bomb Launcher Peak State ------------ > --- POWER ------------ Light Ion Engine Light Nuclear Core > --- PROPULSION ------- Aluminum Leg Aluminum Leg Aluminum Leg Aluminum Leg Aluminum Leg > --- UTILITY ---------- Scrap Suit Improved Heat Sink Medium Storage Unit Targeting Computer Hardened Medium Armor Plating Authchip [R/Combat] Makeshift System Restoration Module > --- WEAPON ----------- Improved EM Pulse Cannon Heavy Assault Rifle Coil Gun > --- INVENTORY -------- (None) [Rating: 44] Favorites ----------- Power Light Nuclear Core Engine Light Ion Engine Power Core Light Nuclear Core Propulsion Aluminum Leg Treads Light Treads Leg Aluminum Leg Utility Medium Storage Unit Device Improved Heat Sink Storage Medium Storage Unit Processor Signal Interpreter Hackware Authchip [R/Combat] Protection Light Armor Plating Weapon Assault Rifle Energy Gun Medium Laser Energy Cannon Improved EM Pulse Cannon Ballistic Gun Assault Rifle Launcher Rocket Launcher Build | -11 -10 -10 -10 -7 -5 -5 ------- Run | Yrd Mat Min Sub Rec Fac DSF Slots Evolved 11 | . 1 . . . 10 . Power 1 | . . . . . 1 . Propulsion 3 | . 1 . . . 2 . Utility 6 | . . . . . 6 . Weapon 1 | . . . . . 1 . Parts Attached 26 | 7 2 3 . 3 9 2 Power 3 | 1 . 1 . . 1 . Engine 2 | 1 . . . . 1 . Core 1 | . . 1 . . . . Reactor . | . . . . . . . Propulsion 7 | 2 2 . . 1 2 . Treads 1 | . 1 . . . . . Leg 6 | 2 1 . . 1 2 . Wheel . | . . . . . . . Hover . | . . . . . . . Flight . | . . . . . . . Utility 9 | 2 . 1 . 1 5 . Device 3 | . . . . . 3 . Storage 1 | 1 . . . . . . Processor 2 | 1 . . . . 1 . Hackware 1 | . . . . . 1 . Protection 2 | . . 1 . 1 . . Artifact . | . . . . . . . Weapon 7 | 2 . 1 . 1 1 2 Energy Gun 1 | 1 . . . . . . Energy Cannon 1 | . . . . . 1 . Ballistic Gun 3 | 1 . . . 1 . 1 Ballistic Cannon . | . . . . . . . Launcher 2 | . . 1 . . . 1 Special Weapon . | . . . . . . . Impact Weapon . | . . . . . . . Slashing Weapon . | . . . . . . . Piercing Weapon . | . . . . . . . Special Melee Weapon . | . . . . . . . Unidentified Prototypes . | . . . . . . . Parts Lost 8 | . . . . 1 . 7 Power 2 | . . . . . . 2 Propulsion 2 | . . . . . . 2 Utility 2 | . . . . . . 2 Weapon 2 | . . . . 1 . 1 Highest Loss Streak 4 | . . . . 1 . 4 To Critical Strikes . | . . . . . . . Average Backups 8 | 3 8 9 9 9 4 4 Power . | . 1 1 1 1 . . Propulsion 2 | . 2 2 2 2 1 1 Utility 3 | 1 3 4 4 5 2 1 Weapon 1 | . 1 1 1 1 . . Tool/Special . | . . . . . . . Unused Backups 14 | . 4 1 2 1 . 6 Power . | . . . . . . . Propulsion 5 | . 2 . . . . 3 Utility 8 | . 2 1 1 1 . 3 Weapon 1 | . . . 1 . . . Tool/Special . | . . . . . . . Average Slot Usage (%) 96 | . 99 100 100 96 62 77 Engine 4 | . 12 5 . . 5 . Core 6 | . . 6 12 12 5 1 Treads 1 | . 4 . . . . . Leg 34 | . 31 37 37 37 23 26 Device 1 | . . . . . 5 15 Storage 11 | . 12 12 12 12 5 5 Processor 3 | . 12 1 . . 1 5 Protection 7 | . . 10 12 12 5 . Energy Gun 3 | . 12 . . . . . Ballistic Gun 11 | . 12 12 12 12 5 9 Launcher 6 | . . 11 12 8 . . Peak Build Rating 44 | 7 9 12 13 16 39 44 Average Rating 13 | 5 8 10 12 15 29 38 On Entrance 13 | . 7 8 12 13 14 39 Naked Turns . | . . . . . . . Heaviest Build 51 | 17 17 24 24 30 46 51 Greatest Support 50 | 20 30 30 30 30 50 50 Greatest Overweight (x) 1 | . . . . . . 1 Average Overweight (x) . | . . . . . . . Largest Inventory Capacity 10 | 10 10 10 10 10 10 10 Average Capacity 9 | 8 10 10 10 10 10 10 Most Carried 10 | 7 10 10 10 10 9 8 Average Carried 8 | 3 8 9 9 9 3 4 Final Capacity 10 | 10 10 10 10 10 10 10 Final Carried 10 | 7 8 10 10 10 . 7 Class Distribution -------------------- 93% | Hacker-Mutant 6% | Hacker-Gunner Dominant Class ---------------- Hacker-Mutant | -10/Materials Hacker-Mutant | -10/Mines Hacker-Mutant | -10/Subcaves Hacker-Mutant | -7/Recycling Hacker-Mutant | -5/Factory Hacker-Gunner | -5/DSF Resources | -11 -10 -10 -10 -7 -5 -5 ----------- Run | Yrd Mat Min Sub Rec Fac DSF Matter Collected 733 | 206 127 29 69 191 . 111 Remotely . | . . . . . . . Salvage Created 611 | . 185 . 81 193 . 152 Parts 41 | . 15 . 12 7 . 7 Haulers Intercepted . | . . . . . . . Recyclers Shooed . | . . . . . . . Parts Field Recycled . | . . . . . . . Retrieved Matter . | . . . . . . . Parts Self-Destructed . | . . . . . . . Prevented . | . . . . . . . Kills | -11 -10 -10 -10 -7 -5 -5 ------- Run | Yrd Mat Min Sub Rec Fac DSF Combat Hostiles Destroyed 16 | . 5 . 5 4 . 2 Guns 11 | . 5 . 1 3 . 2 AOE 5 | . . . 4 1 . . Classes Destroyed 6 | . 3 . 1 1 . 1 Watcher 2 | . 2 . . . . . Swarmer 7 | . 3 . 4 . . . Grunt 3 | . 2 . . 1 . . Sentry 3 | . . . . 3 . . Specialist 2 | . . . . . . 2 Subdweller 1 | . . . 1 . . . Best Kill Streak 5 | . 5 . 5 2 . 2 Combat Bots Only 5 | . 5 . 5 2 . 2 Max Kills in Single Turn 3 | . 2 . 3 1 . 1 Gunslinging 1 | . 1 . . . . . Exploded 3 | . . . 3 1 . . Melee . | . . . . . . . Uniques/NPCs Destroyed . | . . . . . . . Combat | -11 -10 -10 -10 -7 -5 -5 -------- Run | Yrd Mat Min Sub Rec Fac DSF Hostile Shots Fired 219 | . 21 2 5 124 . 67 Missed 65 | . 7 2 2 40 . 14 Hits 154 | . 14 . 3 84 . 53 Projectile 154 | . 14 . 3 84 . 53 Part Disruptions 5 | . . . . . . 5 Damage Taken 1416 | . 72 . 101 388 . 855 Core 166 | . 21 . 15 56 . 74 Absorbed by Shields 9 | . . . . 9 . . Ignored by Resistances 861 | . 49 . 28 285 . 499 Regen/Repaired (Parts) 26 | . . . . . . 26 Core Remaining (%) 81 | 100 . . . 63 . . Volleys Fired 68 | . 11 1 8 33 . 15 Largest 3 | . 2 1 1 1 . 3 Hottest 122 | . 70 20 33 33 . 122 Shots Fired 91 | . 22 1 8 33 . 27 Gun 73 | . 22 1 2 25 . 23 Cannon 4 | . . . . . . 4 Launcher 14 | . . . 6 8 . . Special . | . . . . . . . Kinetic 62 | . 11 1 2 25 . 23 Thermal 11 | . 11 . . . . . Explosive 14 | . . . 6 8 . . Electromagnetic 4 | . . . . . . 4 Robot Hit Streak 28 | . 16 17 18 28 . 16 Robot Miss Streak 2 | . 1 . 1 2 . 1 Penetration Max . | . . . . . . . Secondary Targets 2 | . 2 . . . . . Max Gunslinging Chain 1 | . 1 . . . . . Shots Hit Robots 78 | . 18 1 6 28 . 25 Core Hits 40 | . 11 2 7 15 . 5 Critical Kills 1 | . . . . . . 1 Critical Parts Destroyed . | . . . . . . . Critical Strikes 2 | . 1 . . . . 1 Burn 1 | . 1 . . . . . Destroy 1 | . . . . . . 1 Melee Attacks . | . . . . . . . Impact . | . . . . . . . Slashing . | . . . . . . . Piercing . | . . . . . . . Sneak Attacks . | . . . . . . . Combat Hostiles . | . . . . . . . Follow-up Attacks . | . . . . . . . Damage Inflicted 1522 | . 249 26 320 427 . 500 Guns 997 | . 249 14 24 306 . 404 Cannons 96 | . . . . . . 96 Explosions 417 | . . . 296 121 . . Melee . | . . . . . . . Ramming 12 | . . 12 . . . . Kinetic 884 | . 136 14 24 306 . 404 Thermal 113 | . 113 . . . . . Explosive 417 | . . . 296 121 . . Electromagnetic 96 | . . . . . . 96 Impact . | . . . . . . . Slashing . | . . . . . . . Piercing . | . . . . . . . Highest Corruption 2 | . . . . . . 2 Average Corruption 1 | . . . . . . 1 Corruption Purged . | . . . . . . . Corruption Blocked . | . . . . . . . Overload Shots . | . . . . . . . Overflow Damage . | . . . . . . . Projectiles . | . . . . . . . Explosions . | . . . . . . . Melee . | . . . . . . . Knockbacks . | . . . . . . . Impact . | . . . . . . . Kinetic . | . . . . . . . Secondary . | . . . . . . . Self-Inflicted Damage . | . . . . . . . Shots . | . . . . . . . Rammed . | . . . . . . . Targets Rammed 2 | . . 2 . . . . Kicked 2 | . . 2 . . . . Crushed . | . . . . . . . Highest Temperature 120 | . 78 . . 120 . . Average Temperature 37 | . 29 . . 42 . . Received Heat Transfer 262 | . 24 . 12 226 . . Siege Activations . | . . . . . . . Martial Activations . | . . . . . . . Shielding Activations . | . . . . . . . Robots Disrupted . | . . . . . . . Combat Hostiles . | . . . . . . . Robots Corrupted . | . . . . . . . Combat Hostiles . | . . . . . . . Parts Fried . | . . . . . . . Impact Corruptions . | . . . . . . . Robots Melted . | . . . . . . . Combat Hostiles . | . . . . . . . Parts Melted 1 | . 1 . . . . . Heat Transferred 407 | . 407 . . . . . Parts Sabotaged . | . . . . . . . Parts Stolen . | . . . . . . . Parts Stripped . | . . . . . . . Power Chain Reactions . | . . . . . . . Alert | -11 -10 -10 -10 -7 -5 -5 ------- Run | Yrd Mat Min Sub Rec Fac DSF Maximum Alert Level . | . . . . . . . Low Security (%) 100 | 100 100 100 . 100 100 100 Level 1 . | . . . . . . . Level 2 . | . . . . . . . Level 3 . | . . . . . . . Level 4 . | . . . . . . . Level 5 . | . . . . . . . High Security . | . . . . . . . Max Security . | . . . . . . . Peak Influence 115 | . 115 52 . 36 50 81 Initial 50 | . . . . 36 50 27 Average 9 | . 12 2 . 1 50 57 Influence Increases 618 | . 155 52 165 109 53 84 Destroy 0b10 Robot/C 380 | . 100 40 120 80 . 40 Destroy 0b10 Robot/NC 10 | . 10 . . . . . Destroy Leader 54 | . 34 10 . . . 10 Allied During Kill 2 | . . 2 . . . . Successful Hack 14 | . 11 . . . 3 . Disable Machine 4 | . . . . . . 4 Destroy Structure 29 | . . . . 29 . . Advance Influence 50 | . . . . . 50 . Lose Combat Pursuer 75 | . . . 45 . . 30 Influence Decreases 577 | . 155 52 60 214 . 96 Entered New Map 95 | . . . . 69 . 26 Time Decay 366 | . 155 52 60 99 . . Lost Part 80 | . . . . 10 . 70 Lost Ally 36 | . . . . 36 . . Squads Dispatched 3 | . . . . . . 3 Investigation . | . . . . . . . Extermination . | . . . . . . . Reinforcement 3 | . . . . . . 3 Assault . | . . . . . . . Garrison . | . . . . . . . Intercept . | . . . . . . . Searches Triggered . | . . . . . . . Construction Impeded . | . . . . . . . Haulers Reinforced . | . . . . . . . Active Scanning Responses . | . . . . . . . Cargo Convoy Interrupts . | . . . . . . . Stealth | -11 -10 -10 -10 -7 -5 -5 --------- Run | Yrd Mat Min Sub Rec Fac DSF Distress Signals 1 | . 1 . . . . . Communications Jammed . | . . . . . . . Distress Signals . | . . . . . . . Times Spotted 34 | . 9 2 9 4 . 10 Peak Tracking Total 7 | . 5 2 7 2 . 6 Tactical Retreats 3 | . . . 1 . . 2 Traps | -11 -10 -10 -10 -7 -5 -5 ------- Run | Yrd Mat Min Sub Rec Fac DSF Traps Triggered 5 | . 1 . 2 . . 2 Indirectly . | . . . . . . . Trap Hack Attempts . | . . . . . . . Triggered . | . . . . . . . Disarmed . | . . . . . . . Reprogrammed 2 | . 2 . . . . . Reused . | . . . . . . . Traps Extracted . | . . . . . . . Installed . | . . . . . . . Triggered . | . . . . . . . Machines | -11 -10 -10 -10 -7 -5 -5 ---------- Run | Yrd Mat Min Sub Rec Fac DSF Machines Disabled 5 | . . . 4 . . 1 Max in Single Turn 2 | . . . 2 . . 1 Machines Repaired . | . . . . . . . Machines Dismantled . | . . . . . . . Machines Sabotaged . | . . . . . . . Overloaded Fab Kills . | . . . . . . . Hacking | -11 -10 -10 -10 -7 -5 -5 --------- Run | Yrd Mat Min Sub Rec Fac DSF Machines Accessed 15 | . 5 . . 9 1 . Terminals 9 | . 4 . . 4 1 . Fabricators . | . . . . . . . Repair Stations . | . . . . . . . Recycling Units 6 | . 1 . . 5 . . Scanalyzers . | . . . . . . . Garrison Access . | . . . . . . . Total Hacks 21 | . 7 . . 13 1 . Successful 17 | . 6 . . 10 1 . Failed 4 | . 1 . . 3 . . Catastrophic 1 | . . . . 1 . . Database Lockouts . | . . . . . . . Manual . | . . . . . . . Terminals 15 | . 6 . . 8 1 . Fabricators . | . . . . . . . Repair Stations . | . . . . . . . Recycling Units 6 | . 1 . . 5 . . Scanalyzers . | . . . . . . . Garrison Access . | . . . . . . . Terminal Hacks 11 | . 5 . . 5 1 . Record 4 | . . . . 4 . . Robot Analysis 1 | . . . . 1 . . Open DSF 1 | . . . . . 1 . Level Access Points 1 | . 1 . . . . . Branch Access Points 1 | . 1 . . . . . Locate Traps 1 | . 1 . . . . . Reprogram Traps 1 | . 1 . . . . . Maintenance Status 1 | . 1 . . . . . Fabricator Hacks . | . . . . . . . Repair Station Hacks . | . . . . . . . Recycling Unit Hacks 6 | . 1 . . 5 . . Report Inventory 6 | . 1 . . 5 . . Scanalyzer . | . . . . . . . Garrison Access Hacks . | . . . . . . . Unauthorized Hacks . | . . . . . . . Terminals . | . . . . . . . Fabricators . | . . . . . . . Repair Stations . | . . . . . . . Recycling Units . | . . . . . . . Scanalyzers . | . . . . . . . Garrison Access . | . . . . . . . Data Cores Recovered . | . . . . . . . Used . | . . . . . . . Hacking Detections 8 | . 2 . . 6 . . Full Trace Events 1 | . . . . 1 . . Feedback Events . | . . . . . . . Feedback Blocked . | . . . . . . . Robot Schematics Acquired . | . . . . . . . Robots Built . | . . . . . . . Authchips . | . . . . . . . Time . | . . . . . . . Total Robot Build Rating . | . . . . . . . Part Schematics Acquired . | . . . . . . . Parts Built . | . . . . . . . Authchips . | . . . . . . . Time . | . . . . . . . Total Part Build Rating . | . . . . . . . Parts Repaired . | . . . . . . . Time . | . . . . . . . Parts Recycled . | . . . . . . . Recycled Matter . | . . . . . . . Retrieved Matter . | . . . . . . . Retrieved Components . | . . . . . . . Parts Scanalyzed . | . . . . . . . Part Schematics Acquired . | . . . . . . . Parts Damaged . | . . . . . . . Bothacking | -11 -10 -10 -10 -7 -5 -5 ------------ Run | Yrd Mat Min Sub Rec Fac DSF Used RIF Installer . | . . . . . . . Robots Hacked . | . . . . . . . Non-combat . | . . . . . . . Combat . | . . . . . . . Robot Hacks Applied . | . . . . . . . Relay Couplers Released . | . . . . . . . Fabnet Peak Effective % . | . . . . . . . Robots Rewired 1 | . . . . 1 . . Allies Hacked . | . . . . . . . Hacks Repelled . | . . . . . . . Allies | -11 -10 -10 -10 -7 -5 -5 -------- Run | Yrd Mat Min Sub Rec Fac DSF Total Allies 4 | . . 3 . 1 . . Largest Group 3 | . . 3 3 2 . . Highest-Rated Group 40 | . . 40 40 40 . . Highest-Rated Ally 40 | . . 16 16 40 . . Total Orders . | . . . . . . . Ally Attacks 25 | . . 10 14 1 . . Total Damage 254 | . . 142 101 11 . . Kills 4 | . . 2 2 . . . Allies Corrupted . | . . . . . . . Allies Melted . | . . . . . . . Intel | -11 -10 -10 -10 -7 -5 -5 ------- Run | Yrd Mat Min Sub Rec Fac DSF Active Infowar (turns) . | . . . . . . . Robot Analysis Total 1 | . . . . 1 . . Derelict Logs Recovered 1 | . . . 1 . . . Drone Launches . | . . . . . . . Drone Recoveries . | . . . . . . . Exploration | -11 -10 -10 -10 -7 -5 -5 ------------- Run | Yrd Mat Min Sub Rec Fac DSF Turns Passed 3531 | 77 874 809 440 1056 14 261 Spaces Moved 2640 | 52 677 662 349 817 5 78 Core 8 | 8 . . . . . . Treads . | . . . . . . . Legs 2632 | 44 677 662 349 817 5 78 Wheels . | . . . . . . . Hover . | . . . . . . . Flight . | . . . . . . . Fastest Speed 50 | 50 120 120 120 120 120 120 Average Speed 120 | 109 120 120 120 120 120 132 Slowest Speed 190 | 120 120 120 120 120 120 190 Overloaded Moves . | . . . . . . . Propulsion Burnouts . | . . . . . . . Robots Hopped . | . . . . . . . Potential Cave-ins . | . . . . . . . Cave-ins Triggered . | . . . . . . . Exploration Rate (%) 57 | 4 78 93 26 95 . 49 Regions Visited 6 Branch Regions 3 Pre-discovered Areas . | . . . . . . . Known Exits Taken 6 | 1 1 1 1 1 1 . Unknown Exits Taken . | . . . . . . . Scrap Searched . | . . . . . . . Spaces Dug 29 | . . . 9 19 . 1 Terrain Destroyed 77 | . . . 30 46 . 1 Melee . | . . . . . . . Projectile 1 | . . . . . . 1 AOE 76 | . . . 30 46 . . Terrain Rammed . | . . . . . . . Walls Destroyed . | . . . . . . . Machines Disabled . | . . . . . . . Actions | -11 -10 -10 -10 -7 -5 -5 --------- Run | Yrd Mat Min Sub Rec Fac DSF Total 2911 | 72 719 675 361 861 13 210 Wait 126 | . 17 1 1 . . 107 Move 2634 | 51 676 661 348 816 4 78 Hop . | . . . . . . . Pick Up 36 | 14 7 4 2 2 . 7 Fast Attach 3 | . 1 . . 2 . . Attach 19 | 7 1 1 . . 9 1 Detach 1 | . . . . . . 1 Swap 5 | . 1 2 . 1 . 1 Drop 15 | . 5 3 2 5 . . Fire 68 | . 11 1 8 33 . 15 Melee . | . . . . . . . Ram . | . . . . . . . Kick 2 | . . 2 . . . . Crush . | . . . . . . . Escape Stasis . | . . . . . . . Rewire 2 | . . . . 2 . . Trap . | . . . . . . . Miscellaneous . | . . . . . . . Route ------- -11/Scrapyard -10/Materials (discovered 5 exits: *Mat x3 / *Min / *Sub) -10/Mines (discovered 3 exits: *Mat x2 / *Sub) -10/Subcaves -7/Recycling -5/Factory -5/DSF History --------- Turn | Location | Event 4 | -11/Scrapyard | Identified exit to Materials 4 | -11/Scrapyard | Discovered exit to Materials (range 16) 78 | -11/Scrapyard | Entered Materials 78 | -10/Materials | Evolved 1 slot: Propulsion x1 181 | -10/Materials | Identified exit to Materials 308 | -10/Materials | Build established: Hacker-Mutant 332 | -10/Materials | Identified exit to Subcaves 332 | -10/Materials | Discovered exit to Subcaves (range 9) 609 | -10/Materials | Identified exit to Mines 609 | -10/Materials | Discovered exit to Mines (range 7) 952 | -10/Materials | Entered Mines 959 | -10/Mines | Received a Rocket Launcher from a helpful Derelict 1098 | -10/Mines | Discovered exit to Materials (range 10) 1169 | -10/Mines | Assisted by bots powering up and referring to "LRC-V3" 1243 | -10/Mines | Discovered exit to Subcaves (range 6) 1453 | -10/Mines | Found a Scrap Suit stashed away for nefarious purposes 1461 | -10/Mines | Found Scrap Suit 1587 | -10/Mines | Discovered exit to Materials (range 9) 1761 | -10/Mines | Entered Subcaves 1761 | -10/Subcaves | Accompanied by 3 allies 1887 | -10/Subcaves | Shifting Twisted Machinery released Mak. System Restoration Module 1889 | -10/Subcaves | Learned Materials emergency access door positions 2147 | -10/Subcaves | Identified exit to Recycling 2147 | -10/Subcaves | Discovered exit to Recycling (range 15) 2201 | -10/Subcaves | Entered Recycling 2201 | -7/Recycling | Accompanied by 2 allies 2202 | -7/Recycling | Met a Zionite searching for Scraptown 2250 | -7/Recycling | Lost 3 allies 2657 | -7/Recycling | Identified exit to Factory 2657 | -7/Recycling | Discovered exit to Factory (range 14) 3257 | -7/Recycling | Entered Factory 3257 | -5/Factory | Evolved 10 slots: Power x1, Propulsion x2, Utility x6, Weapon x1 3271 | -5/Factory | Identified exit to DSF 3271 | -5/Factory | Entered DSF 3301 | -5/DSF | Additional patrols routed to DSF 3532 | -5/DSF | Self-destructed Last Messages --------------- 03462_ An alarm sounds. 03480_ H-71 Marshal calls for reinforcements. 03480_ ALERT: Hostile activity reported, dispatching reinforcements to area. 03481_ Slug penetrates H-71 Marshal. 03486_ Slug penetrates Wall. 03487_ Slug penetrates H-71 Marshal. 03491_ Aluminum Leg destroyed. 03493_ Slug penetrates H-71 Marshal. 03496_ Hvy. Assault Rifle destroyed. 03496_ Knocked back. 03505_ Mak. System Restoration Module destroyed. 03516_ Slug penetrates X-72 Disruptor. 03523_ Slug penetrates Wall. 03529_ Aluminum Leg destroyed. 03529_ Knocked back. 03530_ Penetrated by Slug. 03530_ Slug penetrates X-72 Disruptor. 03531_ C-30 ARC bursts open, deploying its payload. Map ----- +----------------------------------------------------+ | ????????????????????????????????????????? | | ????????????????????????????????????????? | | ????????????????????????????????????????? | | ????????????????????????????????????????? | | ????????????????????????????????????????? | | ????????????????????????????????????????? | | ????????????????????????????????????????? | | ????????????????????????????????????????? | | ????????????????????????????????????????? | | ????????????????????????????????????????? | | ????????????????????????????????????????? | | ????????????????????????????????????????? | | ????????????????????????????????????????? | | ????????????????????????????????????????? | | ??????######?####?###???????????????????? | | ??????#[[ #?===#!!!#?# #?????????????? | | ??????#[[ ##===#!!!## ?????????????? | | ????###** ?????????????? | | ????# "** %% ?????????????? | | ??????#* % ?????????????? | | ??????#* #"!!!#!!!#? ?????????????? | | ??????# #"!!!#?????# #?????????????? | | ??????### %#"####???### ###???????????? | | ???????#! p ####????!! ==????????????? | | ???????#! ! hxx###??!! ==????????????? | | ???????#! ]!#H @]#???! =?????????????? | | ???????## #### ]]#?### ###???????????? | | ???????#[ ] / %###?# #???????????? | | ???????#* ####???# #???????????? | | ???????## ########## #???????????? | | ??????### ### #!!!#?# #?????????????? | | ????###""% ## #!!!### %!###???????????? | | ????""""%% % %!#???????????? | | ????"##"" !*#???????????? | | ??????#"""""##% # !!# %]]#???????????? | | ??????#"""""######### % ]#???????????? | | ??????####"##???????###%"####???????????? | | ?????????#"#??????????####??????????????? | | ?????????""#????????????????????????????? | | ?????????##?????????????????????????????? | | ????????????????????????????????????????? | | ????????????????????????????????????????? | | ????????????????????????????????????????? | | ????????????????????????????????????????? | | | | | | | | | | | | | +----------------------------------------------------+ Best States ------------- Heat Dissipation 54 Energy Generation 19 Energy Capacity 185 Matter Stores 300 Matter Capacity 300 Sight Range 16 Terrain Scan Density 10 Armor Coverage 225 Resistance: KI 35 Resistance: TH 35 Resistance: EX 35 Resistance: EM 35 Resistance: I 35 Resistance: S 35 Resistance: P 35 Evasion (%) 55 Targeting Accuracy 5 Offensive Hacking 20 Authchip Count 1 Item Schematics ----------------- None Robot Schematics ------------------ None Fabricated ------------ Nothing Repaired ---------- Nothing Alien Tech Used ----------------- None Achievements -------------- A New Friend Tourist Challenges ------------ None Game ------ Seed MyomerIonScrap Manual? 0 Play Time 00:51:45 Cumulative 7.0 hours Start 2025.10.19 @ 22:06:13 End 2025.10.20 @ 14:44:38 Sessions 3 Manual Loads 0 Difficulty Explorer Special Mode None Game No. 4 Rogue 0 Adventurer 0 Explorer 4 Win Type - Total 0 Types 0/0/0/0/0/0/0/0/0/0 Lore% 2 Gallery% 8 Achievement% 10 Wizard Run 0 Options --------- Layout 1 ASCII 0 Keyboard 0 Movement Mouse Keybinds 0 Fullscreen 1 Font 24/Smallcaps Map View 50x35 Zoom Use 0% Tactical HUD 1 Map Filters NONE Filters NONE Steam 1 RUN: 2be5a95e-e56d-422d-a9a0-a3fa6766f085